Workbook

Sheet 2021年度
A1: 2021年度新能源汽车推广应用补助资金清算审核车辆信息表
A2: 地区 | B2: 序号 | C2: 车辆生产企业 | D2: 车辆型号 | E2: 申报推广数 （辆） | F2: 申请补助标准 （万元） | G2: 申请清算资金 （万元） | H2: 核定推广数 （辆） | I2: 核定补助标准 （万元） | J2: 应清算补助资金 （万元） | K2: 按整车企业取整后补助资金（万元） | L2: 核减原因 | M2: 此前待扣回预拨资金（万元） | N2: 此次扣回预拨资金（万元） | O2: 扣回相应预拨资金后剩余资金（万元）
A3: 总计 | E3: =SUM(E4:E2650)/3 -> 457792 | G3: =SUM(G4:G2650)/3 -> 707328.8808 | H3: =SUM(H4:H2650)/3 -> 426719 | J3: =SUM(J4:J2650)/3 -> 654722.3631 | K3: =SUM(K4:K2650)/2 -> 654727 | M3: =SUM(M4:M2650)/2 -> 1296945 | N3: =SUM(N4:N2650)/2 -> 407878 | O3: =SUM(O4:O2650)/2 -> 246849
A4: 北京市 | B4: 合计 | E4: =E5+E41+E66 -> 30954 | G4: =G5+G41+G66 -> 43673.8372 | H4: =H5+H41+H66 -> 27063 | J4: =J5+J41+J66 -> 37477.548 | K4: =K5+K41+K66 -> 37478 | M4: =M5+M41+M66 -> 14987 | N4: =N5+N41+N66 -> 14987 | O4: =O5+O41+O66 -> 22491
B5: 1 | C5: 北京汽车股份有限公司 | D5: 小计 | E5: =SUM(E6:E40) -> 17958 | G5: 19802.3299 | H5: 14389 | J5: 14770.0222 | K5: =ROUND(J5,0) -> 14770 | M5: 5869 | N5: =M5 -> 5869 | O5: =K5-N5 -> 8901
D6: BJ7000C5D2-BEV | E6: 4 | F6: 1.134 | G6: =E6*F6 -> 4.536 | H6: 4 | I6: 1.134 | J6: =H6*I6 -> 4.536
D7: BJ7000C5D2-BEV | E7: 5 | F7: 1.4175 | G7: =E7*F7 -> 7.0875 | H7: 4 | I7: 1.4175 | J7: =H7*I7 -> 5.67 | L7: 核减1辆，原因为：需进一步核实后予以清算
D8: BJ7000C5D2-BEV | E8: 17 | F8: 1.62 | G8: 27.54 | H8: 14 | I8: 1.62 | J8: 22.68 | L8: 核减3辆，原因为：2辆需进一步核实后予以清算；1辆车辆注册登记信息有误
D9: BJ7000C5D3-BEV | E9: 2729 | F9: 1.134 | G9: 3094.686 | H9: 2716 | I9: 1.134 | J9: 3079.944 | L9: 核减13辆，原因为：车辆注册登记信息有误
D10: BJ7000C5D3-BEV | E10: 4106 | F10: 1.4175 | G10: 5820.255 | H10: 756 | I10: 1.4175 | J10: 1071.63 | L10: 核减3350辆，原因为：16辆企业填报信息存在错误；28辆需进一步核实后予以清算；3278辆需经地方主管部门复核后予以清算；26辆车辆注册登记信息有误；2辆现场核查不通过
D11: BJ7000C5D3-BEV | E11: 71 | F11: 1.62 | G11: 115.02 | H11: 58 | I11: 1.62 | J11: 93.96 | L11: 核减13辆，原因为：10辆需进一步核实后予以清算；3辆车辆注册登记信息有误
D12: BJ7000C5D4-BEV | E12: 5 | F12: 1.134 | G12: 5.67 | H12: 5 | I12: 1.134 | J12: 5.67
D13: BJ7000C5D4-BEV | E13: 2 | F13: 1.4175 | G13: 2.835 | H13: 2 | I13: 1.4175 | J13: 2.835
D14: BJ7000C5D4-BEV | E14: 10 | F14: 1.62 | G14: 16.2 | H14: 10 | I14: 1.62 | J14: 16.2
D15: BJ7000C5D5-BEV | E15: 40 | F15: 1.134 | G15: 45.36 | H15: 34 | I15: 1.134 | J15: 38.556 | L15: 核减6辆，原因为：需进一步核实后予以清算
D16: BJ7000C5D5-BEV | E16: 2 | F16: 1.4175 | G16: 2.835 | H16: 2 | I16: 1.4175 | J16: 2.835
D17: BJ7000C5D5-BEV | E17: 41 | F17: 1.62 | G17: 66.42 | H17: 38 | I17: 1.62 | J17: 61.56 | L17: 核减3辆，原因为：2辆需进一步核实后予以清算；1辆车辆注册登记信息有误
D18: BJ7000C5D7-BEV | E18: 133 | F18: 1.26 | G18: 167.58 | H18: 130 | I18: 1.26 | J18: 163.8 | L18: 核减3辆，原因为：车辆注册登记信息有误
D19: BJ7000C5D7-BEV | E19: 370 | F19: 1.575 | G19: 582.75 | H19: 361 | I19: 1.575 | J19: 568.575 | L19: 核减9辆，原因为：2辆需进一步核实后予以清算；7辆车辆注册登记信息有误
D20: BJ7000C5D7-BEV | E20: 91 | F20: 1.8 | G20: 163.8 | H20: 75 | I20: 1.8 | J20: 135 | L20: 核减16辆，原因为：2辆需进一步核实后予以清算；14辆车辆注册登记信息有误
D21: BJ7000C5DA-BEV | E21: 48 | F21: 1.26 | G21: 60.48 | H21: 48 | I21: 1.26 | J21: 60.48
D22: BJ7000C5DA-BEV | E22: 58 | F22: 1.575 | G22: 91.35 | H22: 55 | I22: 1.575 | J22: 86.625 | L22: 核减3辆，原因为：需进一步核实后予以清算
D23: BJ7000C5DB-BEV | E23: 10 | F23: 0.728 | G23: 7.28 | H23: 10 | I23: 0.728 | J23: 7.28
D24: BJ7000C5DB-BEV | E24: 69 | F24: 0.9072 | G24: 62.5968 | H24: 69 | I24: 0.9072 | J24: 62.5968
D25: BJ7000C5DE-BEV | E25: 1 | F25: 0.728 | G25: 0.728 | H25: 1 | I25: 0.728 | J25: 0.728
D26: BJ7000C5DE-BEV | E26: 9328 | F26: 0.9072 | G26: 8462.3616 | H26: 9301 | I26: 0.9072 | J26: 8437.8672 | L26: 核减27辆，原因为：车辆注册登记信息有误
D27: BJ7000C5DF-BEV | E27: 6 | F27: 1.575 | G27: 9.45 | H27: 6 | I27: 1.575 | J27: 9.45
D28: BJ7000C5DF-BEV | E28: 15 | F28: 1.8 | G28: 27 | H28: 13 | I28: 1.8 | J28: 23.4 | L28: 核减2辆，原因为：1辆需进一步核实后予以清算；1辆车辆注册登记信息有误
D29: BJ7000C5DH-BEV | E29: 1 | F29: 1.26 | G29: 1.26 | H29: 0 | I29: 0 | J29: 0 | L29: 核减1辆，原因为：车辆注册登记信息有误
D30: BJ7000C5DH-BEV | E30: 7 | F30: 1.575 | G30: 11.025 | H30: 7 | I30: 1.575 | J30: 11.025
D31: BJ7000C5DH-BEV | E31: 8 | F31: 1.8 | G31: 14.4 | H31: 8 | I31: 1.8 | J31: 14.4
D32: BJ7001U5E2-BEV | E32: 8 | F32: 0.9072 | G32: 7.2576 | H32: 8 | I32: 0.9072 | J32: 7.2576
D33: BJ7001U5E2-BEV | E33: 25 | F33: 1.134 | G33: 28.35 | H33: 24 | I33: 1.134 | J33: 27.216 | L33: 核减1辆，原因为：不符合行驶里程数要求
D34: BJ7001U5E2-BEV | E34: 35 | F34: 1.296 | G34: 45.36 | H34: 25 | I34: 1.296 | J34: 32.4 | L34: 核减10辆，原因为：6辆需进一步核实后予以清算；4辆车辆注册登记信息有误
D35: BJ7003U3D2-BEV | E35: 131 | F35: 0.9072 | G35: 118.8432 | H35: 122 | I35: 0.9072 | J35: 110.6784 | L35: 核减9辆，原因为：车辆注册登记信息有误
D36: BJ7003U3D2-BEV | E36: 110 | F36: 1.134 | G36: 124.74 | H36: 102 | I36: 1.134 | J36: 115.668 | L36: 核减8辆，原因为：6辆需进一步核实后予以清算；2辆车辆注册登记信息有误
D37: BJ7003U3D2-BEV | E37: 449 | F37: 1.296 | G37: 581.904 | H37: 359 | I37: 1.296 | J37: 465.264 | L37: 核减90辆，原因为：68辆需进一步核实后予以清算；22辆车辆注册登记信息有误
D38: BJ7003U3D3-BEV | E38: 11 | F38: 0.9072 | G38: 9.9792 | H38: 11 | I38: 0.9072 | J38: 9.9792
D39: BJ7003U3D3-BEV | E39: 1 | F39: 1.134 | G39: 1.134 | H39: 0 | I39: 0 | J39: 0 | L39: 核减1辆，原因为：需进一步核实后予以清算
D40: BJ7003U3D3-BEV | E40: 11 | F40: 1.296 | G40: 14.256 | H40: 11 | I40: 1.296 | J40: 14.256
B41: 2 | C41: 北京新能源汽车股份有限公司 | D41: 小计 | E41: =SUM(E42:E65) -> 8459 | G41: 10237.4798 | H41: 8196 | J41: 9884.9289 | K41: =ROUND(J41,0) -> 9885 | M41: 0 | N41: =M41 -> 0 | O41: =K41-N41 -> 9885
D42: BJ7000C5EB-BEV | E42: 403 | F42: 0.6552 | G42: =E42*F42 -> 264.0456 | H42: 399 | I42: 0.6552 | J42: =H42*I42 -> 261.4248 | L42: 核减4辆，原因为：车辆注册登记信息有误
D43: BJ7000C5EB-BEV | E43: 120 | F43: 0.8165 | G43: 97.98 | H43: 119 | I43: 0.8165 | J43: 97.1635 | L43: 核减1辆，原因为：需进一步核实后予以清算
D44: BJ7000C5EB-BEV | E44: 13 | F44: 0.936 | G44: 12.168 | H44: 5 | I44: 0.936 | J44: 4.68 | L44: 核减8辆，原因为：需进一步核实后予以清算
D45: BJ7000C5ED-BEV | E45: 4 | F45: 0.6552 | G45: 2.6208 | H45: 4 | I45: 0.6552 | J45: 2.6208
D46: BJ7000C5ED-BEV | E46: 241 | F46: 0.8165 | G46: 196.7765 | H46: 241 | I46: 0.8165 | J46: 196.7765
D47: BJ7000CTD1-BEV | E47: 1 | F47: 1.8 | G47: 1.8 | H47: 1 | I47: 1.8 | J47: 1.8
D48: BJ7000CTD-BEV | E48: 2879 | F48: 1.134 | G48: 3264.786 | H48: 2869 | I48: 1.134 | J48: 3253.446 | L48: 核减10辆，原因为：车辆注册登记信息有误
D49: BJ7000CTD-BEV | E49: 2876 | F49: 1.4175 | G49: 4076.73 | H49: 2843 | I49: 1.4175 | J49: 4029.9525 | L49: 核减33辆，原因为：15辆需进一步核实后予以清算；15辆车辆注册登记信息有误；3辆现场核查不通过
D50: BJ7000CTD-BEV | E50: 61 | F50: 1.62 | G50: 98.82 | H50: 59 | I50: 1.62 | J50: 95.58 | L50: 核减2辆，原因为：需进一步核实后予以清算
D51: BJ7000USD1-BEV | E51: 95 | F51: 1.26 | G51: 119.7 | H51: 92 | I51: 1.26 | J51: 115.92 | L51: 核减3辆，原因为：车辆注册登记信息有误
D52: BJ7000USD1-BEV | E52: 71 | F52: 1.575 | G52: 111.825 | H52: 68 | I52: 1.575 | J52: 107.1 | L52: 核减3辆，原因为：2辆需进一步核实后予以清算；1辆车辆注册登记信息有误
D53: BJ7000USD1-BEV | E53: 125 | F53: 1.8 | G53: 225 | H53: 102 | I53: 1.8 | J53: 183.6 | L53: 核减23辆，原因为：5辆需进一步核实后予以清算；18辆车辆注册登记信息有误
D54: BJ7000USD2-BEV | E54: 25 | F54: 1.134 | G54: 28.35 | H54: 24 | I54: 1.134 | J54: 27.216 | L54: 核减1辆，原因为：车辆注册登记信息有误
D55: BJ7000USD2-BEV | E55: 9 | F55: 1.4175 | G55: 12.7575 | H55: 8 | I55: 1.4175 | J55: 11.34 | L55: 核减1辆，原因为：不符合行驶里程数要求
D56: BJ7000USD2-BEV | E56: 25 | F56: 1.62 | G56: 40.5 | H56: 24 | I56: 1.62 | J56: 38.88 | L56: 核减1辆，原因为：需进一步核实后予以清算
D57: BJ7000USD-BEV | E57: 63 | F57: 1.134 | G57: 71.442 | H57: 63 | I57: 1.134 | J57: 71.442
D58: BJ7000USD-BEV | E58: 430 | F58: 1.4175 | G58: 609.525 | H58: 422 | I58: 1.4175 | J58: 598.185 | L58: 核减8辆，原因为：7辆需进一步核实后予以清算；1辆车辆注册登记信息有误
D59: BJ7000USD-BEV | E59: 82 | F59: 1.62 | G59: 132.84 | H59: 5 | I59: 1.62 | J59: 8.1 | L59: 核减77辆，原因为：需进一步核实后予以清算
D60: BJ7001BPHD-BEV | E60: 31 | F60: 0.7711 | G60: 23.9041 | H60: 31 | I60: 0.7711 | J60: 23.9041
D61: BJ7001BPHD-BEV | E61: 365 | F61: 1.1016 | G61: 402.084 | H61: 327 | I61: 1.1016 | J61: 360.2232 | L61: 核减38辆，原因为：34辆需进一步核实后予以清算；4辆车辆注册登记信息有误
D62: BJ7001BPHF-BEV | E62: 244 | F62: 0.6552 | G62: 159.8688 | H62: 240 | I62: 0.6552 | J62: 157.248 | L62: 核减4辆，原因为：车辆注册登记信息有误
D63: BJ7001BPHF-BEV | E63: 1 | F63: 0.8165 | G63: 0.8165 | H63: 1 | I63: 0.8165 | J63: 0.8165
D64: BJ7001BPHF-BEV | E64: 265 | F64: 0.936 | G64: 248.04 | H64: 230 | I64: 0.936 | J64: 215.28 | L64: 核减35辆，原因为：31辆需进一步核实后予以清算；3辆车辆注册登记信息有误；1辆现场核查不通过
D65: BJ7001BPHH-BEV | E65: 30 | F65: 1.17 | G65: 35.1 | H65: 19 | I65: 1.17 | J65: 22.23 | L65: 核减11辆，原因为：10辆需进一步核实后予以清算；1辆车辆注册登记信息有误
B66: 3 | C66: 北汽福田汽车股份有限公司 | D66: 小计 | E66: =SUM(E67:E108) -> 4537 | G66: 13634.0275 | H66: 4478 | J66: 12822.5969 | K66: =ROUND(J66,0) -> 12823 | M66: 9118 | N66: =M66 -> 9118 | O66: =K66-N66 -> 3705
D67: BJ1045EVJA10 | E67: 18 | F67: 2.5559 | G67: =E67*F67 -> 46.0062 | H67: 18 | I67: 2.0447 | J67: =H67*I67 -> 36.8046
D68: BJ1045EVJA10 | E68: 12 | F68: 2.5559 | G68: 30.6708 | H68: 12 | I68: 2.5559 | J68: 30.6708
D69: BJ1045EVJA9 | E69: 48 | F69: 3.2981 | G69: 158.3088 | H69: 48 | I69: 3.2981 | J69: 158.3088
D70: BJ1045EVJA9 | E70: 4 | F70: 3.2981 | G70: 13.1924 | H70: 4 | I70: 2.6384 | J70: 10.5536
D71: BJ3319EVPA1 | E71: 7 | F71: 4 | G71: 28 | H71: 7 | I71: 4 | J71: 28
D72: BJ4259EVPA1 | E72: 551 | F72: 4 | G72: 2204 | H72: 547 | I72: 4 | J72: 2188 | L72: 核减4辆，原因为：车辆注册登记信息有误
D73: BJ5039XXYEV6 | E73: 606 | F73: 1.5822 | G73: 958.8132 | H73: 606 | I73: 1.5822 | J73: 958.8132
D74: BJ5039XXYEV6 | E74: 513 | F74: 1.5822 | G74: 811.6686 | H74: 512 | I74: 1.2658 | J74: 648.0896 | L74: 核减1辆，原因为：车辆注册登记信息有误
D75: BJ5045CCYEV3 | E75: 16 | F75: 3.2981 | G75: 52.7696 | H75: 16 | I75: 3.2981 | J75: 52.7696
D76: BJ5045CCYEV4 | E76: 163 | F76: 3.2981 | G76: 537.5903 | H76: 163 | I76: 3.2981 | J76: 537.5903
D77: BJ5045CCYEV4 | E77: 19 | F77: 3.2981 | G77: 62.6639 | H77: 19 | I77: 2.6384 | J77: 50.1296
D78: BJ5045XLCEV3 | E78: 4 | F78: 3.2981 | G78: 13.1924 | H78: 4 | I78: 3.2981 | J78: 13.1924
D79: BJ5045XXYEV10 | E79: 104 | F79: 2.5559 | G79: 265.8136 | H79: 104 | I79: 2.0447 | J79: 212.6488
D80: BJ5045XXYEV10 | E80: 96 | F80: 2.5559 | G80: 245.3664 | H80: 96 | I80: 2.5559 | J80: 245.3664
D81: BJ5045XXYEV8 | E81: 187 | F81: 2.5559 | G81: 477.9533 | H81: 187 | I81: 2.5559 | J81: 477.9533
D82: BJ5045XXYEV8 | E82: 168 | F82: 2.5559 | G82: 429.3912 | H82: 168 | I82: 2.0447 | J82: 343.5096
D83: BJ5045XXYEV9 | E83: 195 | F83: 3.2981 | G83: 643.1295 | H83: 195 | I83: 3.2981 | J83: 643.1295
D84: BJ5045XXYEV9 | E84: 63 | F84: 3.2981 | G84: 207.7803 | H84: 62 | I84: 2.6384 | J84: 163.5808 | L84: 核减1辆，原因为：车辆注册登记信息有误
D85: BJ5045XXYEVC | E85: 592 | F85: 3.2981 | G85: 1952.4752 | H85: 592 | I85: 3.2981 | J85: 1952.4752
D86: BJ5045XXYEVC | E86: 109 | F86: 3.2981 | G86: 359.4929 | H86: 108 | I86: 2.6384 | J86: 284.9472 | L86: 核减1辆，原因为：车辆注册登记信息有误
D87: BJ5045XXYEVJ | E87: 518 | F87: 3.2981 | G87: 1708.4158 | H87: 518 | I87: 3.2981 | J87: 1708.4158
D88: BJ5045XXYEVJ | E88: 94 | F88: 3.2981 | G88: 310.0214 | H88: 94 | I88: 2.6384 | J88: 248.0096
D89: BJ5045XXYEVK | E89: 72 | F89: 3.1585 | G89: 227.412 | H89: 72 | I89: 3.1585 | J89: 227.412
D90: BJ5045XXYEVK | E90: 1 | F90: 3.1585 | G90: 3.1585 | H90: 1 | I90: 2.5268 | J90: 2.5268
D91: BJ5045ZKXEV10 | E91: 2 | F91: 2.5559 | G91: 5.1118 | H91: 2 | I91: 2.0447 | J91: 4.0894
D92: BJ5048XXYEV3 | E92: 40 | F92: 2.5175 | G92: 100.7 | H92: 40 | I92: 2.5175 | J92: 100.7
D93: BJ5048XXYEV3 | E93: 16 | F93: 2.5175 | G93: 40.28 | H93: 16 | I93: 2.014 | J93: 32.224
D94: BJ5062XTYEV-H1 | E94: 1 | F94: 3.2986 | G94: 3.2986 | H94: 0 | I94: 0 | J94: 0 | L94: 核减1辆，原因为：不符合行驶里程数要求
D95: BJ5065XXYEV1 | E95: 3 | F95: 3.2981 | G95: 9.8943 | H95: 2 | I95: 3.2981 | J95: 6.5962 | L95: 核减1辆，原因为：不符合行驶里程数要求
D96: BJ6105CHEVCA-15 | E96: 64 | F96: 2.4216 | G96: 154.9824 | H96: 64 | I96: 2.1794 | J96: 139.4816
D97: BJ6105EVCA-49 | E97: 19 | F97: 8.1 | G97: 153.9 | H97: 19 | I97: 8.1 | J97: 153.9
D98: BJ6105EVCA-52 | E98: 6 | F98: 8.1 | G98: 48.6 | H98: 4 | I98: 8.1 | J98: 32.4 | L98: 核减2辆，原因为：车辆注册登记信息有误
D99: BJ6105EVCA-53 | E99: 40 | F99: 8.1 | G99: 324 | H99: 39 | I99: 8.1 | J99: 315.9 | L99: 核减1辆，原因为：车辆注册登记信息有误
D100: BJ6123CHEVCA-11 | E100: 7 | F100: 2.4163 | G100: 16.9141 | H100: 6 | I100: 2.1747 | J100: 13.0482 | L100: 核减1辆，原因为：车辆注册登记信息有误
D101: BJ6123EVCA-52 | E101: 69 | F101: 7.29 | G101: 503.01 | H101: 69 | I101: 7.29 | J101: 503.01
D102: BJ6123EVCA-53 | E102: 15 | F102: 8.1 | G102: 121.5 | H102: 15 | I102: 8.1 | J102: 121.5
D103: BJ6129EVCA | E103: 5 | F103: 7.29 | G103: 36.45 | H103: 5 | I103: 7.29 | J103: 36.45
D104: BJ6650EVCA-7 | E104: 21 | F104: 2.25 | G104: 47.25 | H104: 21 | I104: 2.25 | J104: 47.25
D105: BJ6816EVCA | E105: 2 | F105: 4.95 | G105: 9.9 | H105: 2 | I105: 4.95 | J105: 9.9
D106: BJ6851EVCA-30 | E106: 11 | F106: 4.95 | G106: 54.45 | H106: 11 | I106: 4.95 | J106: 54.45
D107: BJ6851EVCA-31 | E107: 46 | F107: 4.95 | G107: 227.7 | H107: 0 | I107: 0 | J107: 0 | L107: 核减46辆，原因为：企业填报信息存在错误
D108: BJ6851EVCA-36 | E108: 10 | F108: 2.88 | G108: 28.8 | H108: 10 | I108: 2.88 | J108: 28.8
A109: 天津市 | B109: 合计 | E109: =E110 -> 5086 | G109: =G110 -> 4034.9 | H109: 4957 | J109: 3915.808 | K109: 3916 | M109: 1491 | N109: 1491 | O109: 2425
B110: 1 | C110: 一汽丰田汽车有限公司 | D110: 小计 | E110: =SUM(E111:E117) -> 5086 | G110: 4034.9 | H110: 4957 | J110: 3915.808 | K110: =ROUND(J110,0) -> 3916 | M110: 1491 | N110: =M110 -> 1491 | O110: =K110-N110 -> 2425
D111: TV7001BEV | E111: 6 | F111: 1.008 | G111: =E111*F111 -> 6.048 | H111: 6 | I111: 1.008 | J111: =H111*I111 -> 6.048
D112: TV7001BEV | E112: 1 | F112: 1.26 | G112: 1.26 | H112: 1 | I112: 1.26 | J112: 1.26
D113: TV7001BEV | E113: 942 | F113: 1.44 | G113: 1356.48 | H113: 904 | I113: 1.44 | J113: 1301.76 | L113: 核减38辆，原因为：37辆需进一步核实后予以清算；1辆车辆注册登记信息有误
D114: TV7186HEV6 | E114: 612 | F114: 0.476 | G114: 291.312 | H114: 607 | I114: 0.476 | J114: 288.932 | L114: 核减5辆，原因为：需进一步核实后予以清算
D115: TV7186HEV6 | E115: 300 | F115: 0.63 | G115: 189 | H115: 300 | I115: 0.63 | J115: 189
D116: TV7186HEV6 | E116: 44 | F116: 0.63 | G116: 27.72 | H116: 28 | I116: 0.476 | J116: 13.328 | L116: 核减16辆，原因为：15辆不符合行驶里程数要求；1辆车辆注册登记信息有误
D117: TV7186HEV6 | E117: 3181 | F117: 0.68 | G117: 2163.08 | H117: 3111 | I117: 0.68 | J117: 2115.48 | L117: 核减70辆，原因为：65辆需进一步核实后予以清算；3辆车辆注册登记信息有误；2辆现场核查不通过
A118: 河北省 | B118: 合计 | E118: =E119+E130+E177 -> 4274 | G118: =G119+G130+G177 -> 4599.8397 | H118: 852 | J118: 964.7508 | K118: 965 | M118: 34503 | N118: 484 | O118: 481
B119: 1 | C119: 保定长安客车制造有限公司 | D119: 小计 | E119: =SUM(E120:E129) -> 3332 | G119: 3512.0016 | H119: 0 | J119: 0 | K119: =ROUND(J119,0) -> 0 | M119: 4540 | N119: =K119 -> 0 | O119: =K119-N119 -> 0
D120: SC5021XXYAAABEV | E120: 1198 | F120: 0.9048 | G120: =E120*F120 -> 1083.9504 | H120: 0 | I120: 0 | J120: =H120*I120 -> 0 | L120: 核减1198辆，原因为：现场核查不通过
D121: SC5021XXYAAABEV | E121: 589 | F121: 1.1309 | G121: 666.1001 | H121: 0 | I121: 0 | J121: 0 | L121: 核减589辆，原因为：现场核查不通过
D122: SC5021XXYAABBEV | E122: 24 | F122: 0.9737 | G122: 23.3688 | H122: 0 | I122: 0 | J122: 0 | L122: 核减24辆，原因为：现场核查不通过
D123: SC5021XXYAABBEV | E123: 29 | F123: 1.2172 | G123: 35.2988 | H123: 0 | I123: 0 | J123: 0 | L123: 核减29辆，原因为：现场核查不通过
D124: SC5021XXYAACBEV | E124: 64 | F124: 0.9737 | G124: 62.3168 | H124: 0 | I124: 0 | J124: 0 | L124: 核减64辆，原因为：现场核查不通过
D125: SC5021XXYAACBEV | E125: 59 | F125: 1.2172 | G125: 71.8148 | H125: 0 | I125: 0 | J125: 0 | L125: 核减59辆，原因为：现场核查不通过
D126: SC5031XXYAAGBEV | E126: 816 | F126: 1.0549 | G126: 860.7984 | H126: 0 | I126: 0 | J126: 0 | L126: 核减816辆，原因为：现场核查不通过
D127: SC5031XXYAAGBEV | E127: 441 | F127: 1.3186 | G127: 581.5026 | H127: 0 | I127: 0 | J127: 0 | L127: 核减441辆，原因为：现场核查不通过
D128: SC5031XXYAAHBEV | E128: 79 | F128: 1.0549 | G128: 83.3371 | H128: 0 | I128: 0 | J128: 0 | L128: 核减79辆，原因为：现场核查不通过
D129: SC5031XXYAAHBEV | E129: 33 | F129: 1.3186 | G129: 43.5138 | H129: 0 | I129: 0 | J129: 0 | L129: 核减33辆，原因为：现场核查不通过
B130: 2 | C130: 长城汽车股份有限公司 | D130: 小计 | E130: =SUM(E131:E176) -> 366 | G130: 463.8827 | H130: 286 | J130: 352.8951 | K130: =ROUND(J130,0) -> 353 | M130: 29832 | N130: =K130 -> 353 | O130: =K130-N130 -> 0
D131: CC6481AD23CPHEV | E131: 1 | F131: 0.476 | G131: =E131*F131 -> 0.476 | H131: 1 | I131: 0.476 | J131: =H131*I131 -> 0.476
D132: CC6483AD23BPHEV | E132: 5 | F132: 0.476 | G132: 2.38 | H132: 5 | I132: 0.476 | J132: 2.38
D133: CC6483AD23CPHEV | E133: 2 | F133: 0.476 | G133: 0.952 | H133: 2 | I133: 0.476 | J133: 0.952
D134: CC7000BJ01BBEV | E134: 16 | F134: 1.26 | G134: 20.16 | H134: 16 | I134: 1.26 | J134: 20.16
D135: CC7000BJ01BBEV | E135: 22 | F135: 1.8 | G135: 39.6 | H135: 16 | I135: 1.8 | J135: 28.8 | L135: 核减6辆，原因为：车辆注册登记信息有误
D136: CC7000BJ01CBEV | E136: 28 | F136: 1.134 | G136: 31.752 | H136: 28 | I136: 1.134 | J136: 31.752
D137: CC7000BJ01CBEV | E137: 28 | F137: 1.62 | G137: 45.36 | H137: 15 | I137: 1.62 | J137: 24.3 | L137: 核减13辆，原因为：车辆注册登记信息有误
D138: CC7000BJ02ABEV | E138: 14 | F138: 1.26 | G138: 17.64 | H138: 14 | I138: 1.26 | J138: 17.64
D139: CC7000BJ02ABEV | E139: 2 | F139: 1.8 | G139: 3.6 | H139: 2 | I139: 1.8 | J139: 3.6
D140: CC7000BJ02EBEV | E140: 4 | F140: 1.26 | G140: 5.04 | H140: 4 | I140: 1.26 | J140: 5.04
D141: CC7000BJ02EBEV | E141: 4 | F141: 1.8 | G141: 7.2 | H141: 2 | I141: 1.8 | J141: 3.6 | L141: 核减2辆，原因为：车辆注册登记信息有误
D142: CC7000ZM00BBEV | E142: 5 | F142: 0.91 | G142: 4.55 | H142: 5 | I142: 0.91 | J142: 4.55
D143: CC7000ZM00BBEV | E143: 10 | F143: 1.3 | G143: 13 | H143: 8 | I143: 1.3 | J143: 10.4 | L143: 核减2辆，原因为：车辆注册登记信息有误
D144: CC7000ZM00CBEV | E144: 9 | F144: 0.91 | G144: 8.19 | H144: 9 | I144: 0.91 | J144: 8.19
D145: CC7000ZM00CBEV | E145: 22 | F145: 1.3 | G145: 28.6 | H145: 12 | I145: 1.3 | J145: 15.6 | L145: 核减10辆，原因为：车辆注册登记信息有误
D146: CC7000ZM00EBEV | E146: 4 | F146: 0.91 | G146: 3.64 | H146: 4 | I146: 0.91 | J146: 3.64
D147: CC7000ZM00EBEV | E147: 14 | F147: 1.3 | G147: 18.2 | H147: 7 | I147: 1.3 | J147: 9.1 | L147: 核减7辆，原因为：车辆注册登记信息有误
D148: CC7000ZM00FBEV | E148: 1 | F148: 0.91 | G148: 0.91 | H148: 1 | I148: 0.91 | J148: 0.91
D149: CC7000ZM00FBEV | E149: 1 | F149: 1.3 | G149: 1.3 | H149: 0 | I149: 0 | J149: 0 | L149: 核减1辆，原因为：车辆注册登记信息有误
D150: CC7000ZM02DBEV | E150: 8 | F150: 0.8288 | G150: 6.6304 | H150: 8 | I150: 0.8288 | J150: 6.6304
D151: CC7000ZM02DBEV | E151: 2 | F151: 1.0256 | G151: 2.0512 | H151: 0 | I151: 0 | J151: 0 | L151: 核减2辆，原因为：不符合行驶里程数要求
D152: CC7000ZM02DBEV | E152: 24 | F152: 1.184 | G152: 28.416 | H152: 15 | I152: 1.184 | J152: 17.76 | L152: 核减9辆，原因为：车辆注册登记信息有误
D153: CC7000ZM02FBEV | E153: 11 | F153: 0.7636 | G153: 8.3996 | H153: 11 | I153: 0.7636 | J153: 8.3996
D154: CC7000ZM02FBEV | E154: 13 | F154: 1.0908 | G154: 14.1804 | H154: 8 | I154: 1.0908 | J154: 8.7264 | L154: 核减5辆，原因为：车辆注册登记信息有误
D155: CC7000ZM05ABEV | E155: 5 | F155: 1.008 | G155: 5.04 | H155: 5 | I155: 1.008 | J155: 5.04
D156: CC7000ZM05ABEV | E156: 1 | F156: 1.2474 | G156: 1.2474 | H156: 0 | I156: 0 | J156: 0 | L156: 核减1辆，原因为：不符合行驶里程数要求
D157: CC7000ZM05ABEV | E157: 11 | F157: 1.44 | G157: 15.84 | H157: 4 | I157: 1.44 | J157: 5.76 | L157: 核减7辆，原因为：车辆注册登记信息有误
D158: CC7001CE03ABEV | E158: 3 | F158: 1.134 | G158: 3.402 | H158: 3 | I158: 1.134 | J158: 3.402
D159: CC7001CE03ABEV | E159: 1 | F159: 1.4175 | G159: 1.4175 | H159: 1 | I159: 1.4175 | J159: 1.4175
D160: CC7001CE03BBEV | E160: 5 | F160: 1.26 | G160: 6.3 | H160: 5 | I160: 1.26 | J160: 6.3
D161: CC7001CE03BBEV | E161: 28 | F161: 1.575 | G161: 44.1 | H161: 28 | I161: 1.575 | J161: 44.1
D162: CC7001CE03BEV | E162: 11 | F162: 1.134 | G162: 12.474 | H162: 11 | I162: 1.134 | J162: 12.474
D163: CC7001CE03BEV | E163: 2 | F163: 1.4175 | G163: 2.835 | H163: 0 | I163: 0 | J163: 0 | L163: 核减2辆，原因为：不符合行驶里程数要求
D164: CC7001CE03BEV | E164: 1 | F164: 1.62 | G164: 1.62 | H164: 0 | I164: 0 | J164: 0 | L164: 核减1辆，原因为：车辆注册登记信息有误
D165: CC7001CE04BEV | E165: 6 | F165: 1.008 | G165: 6.048 | H165: 6 | I165: 1.008 | J165: 6.048
D166: CC7001CE04BEV | E166: 2 | F166: 1.26 | G166: 2.52 | H166: 0 | I166: 0 | J166: 0 | L166: 核减2辆，原因为：不符合行驶里程数要求
D167: CC7001CE04BEV | E167: 1 | F167: 1.44 | G167: 1.44 | H167: 1 | I167: 1.44 | J167: 1.44
D168: CC7001ZM00BBEV | E168: 1 | F168: 0.8232 | G168: 0.8232 | H168: 1 | I168: 0.8232 | J168: 0.8232
D169: CC7001ZM00BBEV | E169: 15 | F169: 1.176 | G169: 17.64 | H169: 11 | I169: 1.176 | J169: 12.936 | L169: 核减4辆，原因为：车辆注册登记信息有误
D170: CC7001ZM00EBEV | E170: 2 | F170: 1.148 | G170: 2.296 | H170: 2 | I170: 1.148 | J170: 2.296
D171: CC7001ZM01BBEV | E171: 1 | F171: 0.91 | G171: 0.91 | H171: 1 | I171: 0.91 | J171: 0.91
D172: CC7001ZM01BBEV | E172: 2 | F172: 1.3 | G172: 2.6 | H172: 1 | I172: 1.3 | J172: 1.3 | L172: 核减1辆，原因为：车辆注册登记信息有误
D173: CC7001ZM01BEV | E173: 1 | F173: 0.91 | G173: 0.91 | H173: 1 | I173: 0.91 | J173: 0.91
D174: CC7001ZM01BEV | E174: 4 | F174: 1.3 | G174: 5.2 | H174: 3 | I174: 1.3 | J174: 3.9 | L174: 核减1辆，原因为：车辆注册登记信息有误
D175: CC7001ZM02CBEV | E175: 4 | F175: 1.008 | G175: 4.032 | H175: 4 | I175: 1.008 | J175: 4.032
D176: CC7001ZM02CBEV | E176: 9 | F176: 1.44 | G176: 12.96 | H176: 5 | I176: 1.44 | J176: 7.2 | L176: 核减4辆，原因为：车辆注册登记信息有误
B177: 3 | C177: 河北长安汽车有限公司 | D177: 小计 | E177: =SUM(E178:E212) -> 576 | G177: 623.9554 | H177: 566 | J177: 611.8557 | K177: =ROUND(J177,0) -> 612 | M177: 131 | N177: =M177 -> 131 | O177: =K177-N177 -> 481
D178: SC1022DEAABEV | E178: 46 | F178: 0.8515 | G178: =E178*F178 -> 39.169 | H178: 46 | I178: 0.8515 | J178: =H178*I178 -> 39.169
D179: SC1022DEAABEV | E179: 41 | F179: 1.0643 | G179: 43.6363 | H179: 41 | I179: 1.0643 | J179: 43.6363
D180: SC1022DEAABEV | E180: 3 | F180: 1.0643 | G180: 3.1929 | H180: 2 | I180: 0.8516 | J180: 1.7032 | L180: 核减1辆，原因为：车辆注册登记信息有误
D181: SC1027DACABEV | E181: 21 | F181: 0.8386 | G181: 17.6106 | H181: 21 | I181: 0.8386 | J181: 17.6106
D182: SC1027DACABEV | E182: 48 | F182: 1.0483 | G182: 50.3184 | H182: 47 | I182: 1.0483 | J182: 49.2701 | L182: 核减1辆，原因为：车辆注册登记信息有误
D183: SC1032DBACBEV | E183: 4 | F183: 0.9737 | G183: 3.8948 | H183: 3 | I183: 0.9737 | J183: 2.9211 | L183: 核减1辆，原因为：车辆注册登记信息有误
D184: SC1032DBACBEV | E184: 13 | F184: 1.2171 | G184: 15.8223 | H184: 13 | I184: 1.2171 | J184: 15.8223
D185: SC1032DBACBEV | E185: 2 | F185: 1.2171 | G185: 2.4342 | H185: 2 | I185: 0.9737 | J185: 1.9474
D186: SC1032DBADBEV | E186: 6 | F186: 1.1682 | G186: 7.0092 | H186: 5 | I186: 1.1682 | J186: 5.841 | L186: 核减1辆，原因为：企业填报信息存在错误
D187: SC1032DBADBEV | E187: 1 | F187: 1.4603 | G187: 1.4603 | H187: 1 | I187: 1.4603 | J187: 1.4603
D188: SC1032SAAABEV | E188: 1 | F188: 0.8386 | G188: 0.8386 | H188: 1 | I188: 0.8386 | J188: 0.8386
D189: SC1032SBACBEV | E189: 3 | F189: 1.1682 | G189: 3.5046 | H189: 3 | I189: 1.1682 | J189: 3.5046
D190: SC5022XXYAABBEV | E190: 67 | F190: 0.9047 | G190: 60.6149 | H190: 65 | I190: 0.9047 | J190: 58.8055 | L190: 核减2辆，原因为：车辆注册登记信息有误
D191: SC5022XXYAABBEV | E191: 38 | F191: 1.1309 | G191: 42.9742 | H191: 38 | I191: 1.1309 | J191: 42.9742
D192: SC5022XXYDAAABEV | E192: 21 | F192: 0.8515 | G192: 17.8815 | H192: 21 | I192: 0.8515 | J192: 17.8815
D193: SC5022XXYDAAABEV | E193: 2 | F193: 1.0644 | G193: 2.1288 | H193: 2 | I193: 1.0644 | J193: 2.1288
D194: SC5031XLCAAABEV | E194: 14 | F194: 1.0548 | G194: 14.7672 | H194: 13 | I194: 1.0548 | J194: 13.7124 | L194: 核减1辆，原因为：车辆注册登记信息有误
D195: SC5031XLCAAABEV | E195: 1 | F195: 1.3185 | G195: 1.3185 | H195: 1 | I195: 1.3185 | J195: 1.3185
D196: SC5031XXYAAEBEV | E196: 24 | F196: 1.0548 | G196: 25.3152 | H196: 24 | I196: 1.0548 | J196: 25.3152
D197: SC5031XXYAAEBEV | E197: 34 | F197: 1.3185 | G197: 44.829 | H197: 34 | I197: 1.3185 | J197: 44.829
D198: SC5031XXYAAEBEV | E198: 3 | F198: 1.3185 | G198: 3.9555 | H198: 1 | I198: 1.0549 | J198: 1.0549 | L198: 核减2辆，原因为：车辆注册登记信息有误
D199: SC5031XXYAAFBEV | E199: 9 | F199: 1.0548 | G199: 9.4932 | H199: 9 | I199: 1.0548 | J199: 9.4932
D200: SC5031XXYAAJBEV | E200: 46 | F200: 1.0548 | G200: 48.5208 | H200: 46 | I200: 1.0548 | J200: 48.5208
... 2450 more rows
